bitfinex/quotes_SOLUSD_20251009
["timestamp","ask_amount","ask_price","bid_price","bid_amount"]
[1759996993648,0.2,224.83,224.82,44.94625308]
[1759996994017,0.2,224.83,224.8,4.44839857]
[1759996994224,2.74977787,224.82,224.78,4.44870075]
[1759996994441,0.2,224.83,224.78,4.44870075]
[1759996994442,2.74977787,224.81,224.78,4.44870075]
[1759996994642,0.66,224.8,224.78,4.44870075]
[1759996994844,2.74977787,224.81,224.78,4.44870075]
[1759996995448,0.66,224.81,224.78,4.44870075]
[1759996996245,2.74977787,224.81,224.78,4.44870075]
[1759996996446,0.2,224.83,224.75,0.7]
[1759996996447,2.74977787,224.8,224.75,15.32586341]
[1759996996755,0.66,224.8,224.75,47.30586341]
[1759996997137,2.74977787,224.82,224.76,0.7]
[1759996997924,0.2,224.83,224.77,2.08977787]
[1759996998150,0.2,224.83,224.77,2.78977787]
[1759996998533,0.2,224.83,224.78,4.44879437]
[1759996998854,0.2,224.83,224.78,15.57078031]
[1759996999034,0.66,224.82,224.78,4.44879437]
[1759997000036,2.74977787,224.81,224.76,4.44904975]
[1759997000234,2.74977787,224.81,224.74,52.08]
[1759997000235,2.74977787,224.8,224.74,31.28]
[1759997000442,2.74977787,224.8,224.74,35.72940055]
[1759997000642,2.74977787,224.8,224.74,46.85336602]
[1759997001044,0.66,224.8,224.74,46.85336602]
[1759997001236,2.74977787,224.8,224.74,46.85336602]
[1759997001753,2.08977787,224.77,224.74,31.28]
[1759997001933,2.08977787,224.77,224.72,4.4499822]
[1759997002134,2.74977787,224.77,224.72,5.1499822]
[1759997002565,0.66,224.77,224.72,5.1499822]
[1759997002731,2.08977787,224.78,224.72,15.5749377]
[1759997002932,0.2,224.83,224.76,2.08977787]
[1759997003140,0.2,224.83,224.77,2.78977787]
[1759997003347,0.2,224.83,224.79,2.08977787]
[1759997003752,0.2,224.83,224.8,0.7]
[1759997004751,0.2,224.83,224.81,0.7]
[1759997005057,0.2,224.83,224.82,4.44800284]
[1759997006268,0.2,224.83,224.8,6.53797942]
[1759997006479,0.2,224.83,224.8,15.32467676]
[1759997006670,0.2,224.83,224.8,47.32467676]
[1759997007061,0.2,224.83,224.81,0.7]
[1759997008250,0.2,224.83,224.8,26.4456732]
[1759997008475,0.2,224.83,224.8,27.1456732]
[1759997008654,0.2,224.83,224.8,26.4456732]
[1759997009047,0.2,224.83,224.81,0.7]
[1759997009361,0.2,224.83,224.82,4.44800284]
[1759997010761,0.2,224.83,224.82,5.14800284]
[1759997011163,0.2,224.83,224.82,4.44800284]
[1759997011578,0.2,224.83,224.82,5.14800284]
[1759997011764,0.2,224.83,224.81,4.4482007]
[1759997011956,0.2,224.83,224.81,7.23797857]
[1759997012278,0.2,224.83,224.82,2.78977787]
[1759997013675,0.2,224.83,224.82,0.7]
[1759997014180,0.2,224.83,224.82,5.14800284]
[1759997015181,0.2,224.83,224.82,7.23778071]
[1759997015689,0.2,224.83,224.82,5.14800284]
[1759997016061,0.2,224.83,224.82,7.23778071]
[1759997017882,0.2,224.83,224.82,49.35425592]
[1759997018088,0.2,224.83,224.82,47.26447805]
[1759997018390,0.2,224.83,224.82,49.35425592]
[1759997019591,1e-08,224.83,224.82,49.35425592]
[1759997019970,1e-08,224.83,224.82,62.70687637]
[1759997022289,135.72,224.96,224.86,31.67647521]
[1759997022462,0.72,224.95,224.91,2.08977787]
[1759997022786,0.72,224.94,224.92,31.3]
[1759997023085,0.72,224.93,224.92,31.3]
[1759997023785,0.72,224.93,224.92,35.74602525]
[1759997024084,0.72,224.93,224.89,35.74661834]
[1759997024085,2.80977787,224.93,224.89,35.74661834]
[1759997024290,2.77977787,224.92,224.89,4.44661834]
[1759997024606,0.69,224.91,224.89,4.44661834]
[1759997025091,0.69,224.9,224.89,4.44661834]
[1759997025766,0.69,224.9,224.87,46.86431338]
[1759997026573,0.69,224.89,224.87,4.44701383]
[1759997026782,0.69,224.88,224.87,4.44701383]
[1759997027286,0.69,224.88,224.85,31.28]
[1759997027587,0.69,224.87,224.84,31.3]
[1759997027766,0.69,224.87,224.85,4.44740938]
[1759997028973,0.69,224.89,224.85,4.44740938]
[1759997029176,0.69,224.89,224.85,15.56593284]
[1759997029376,34.05977787,224.94,224.87,2.08977787]
[1759997029575,0.69,224.94,224.88,33.38977787]
[1759997030870,0.69,224.94,224.89,4.44661834]
[1759997031203,135.0,224.96,224.89,17.65294207]
[1759997031371,135.69,224.96,224.9,2.73977787]
[1759997031567,2.08977787,224.91,224.81,0.65]
[1759997031779,2.08977787,224.88,224.84,13.35262045]
[1759997032118,0.69,224.9,224.84,2.08977787]
[1759997032682,0.69,224.93,224.88,2.08977787]
[1759997032871,0.69,224.93,224.89,4.44661834]
[1759997033284,0.69,224.92,224.89,4.44661834]
[1759997033486,0.69,224.91,224.89,4.44661834]
[1759997035480,0.69,224.93,224.89,4.44661834]
[1759997036390,0.69,224.94,224.89,18.30294207]
[1759997036594,2.28977787,224.96,224.89,17.65294207]
[1759997036782,0.69,224.93,224.89,6.53639621]
[1759997037603,0.69,224.93,224.89,4.44661834]
[1759997040187,0.69,224.93,224.89,5.09661834]
[1759997040396,0.69,224.93,224.89,4.44661834]
[1759997040602,2.08977787,224.91,224.83,0.65]
[1759997040900,2.08977787,224.89,224.84,42.15647521]
[1759997041074,2.77977787,224.89,224.84,42.15647521]
[1759997041279,0.69,224.89,224.84,42.80647521]
[1759997042295,0.69,224.89,224.85,4.44740938]
[1759997042990,2.77977787,224.89,224.85,4.44740938]
[1759997043501,2.08977787,224.88,224.81,15.76539556]
[1759997043702,2.77977787,224.87,224.82,42.15647521]
[1759997043904,0.69,224.86,224.82,42.15647521]
[1759997044285,0.69,224.86,224.82,42.80647521]
[1759997045291,0.69,224.86,224.82,47.25447805]
[1759997046080,2.79977787,224.88,224.84,4.44760718]
[1759997046294,2.79977787,224.88,224.84,5.09760718]
[1759997046607,2.79977787,224.88,224.84,4.44760718]
[1759997047015,2.08977787,224.88,224.82,5.09787278]
[1759997047304,2.08977787,224.86,224.82,4.44787278]
[1759997047681,2.79977787,224.86,224.82,4.44787278]
[1759997047876,2.79977787,224.86,224.8,5.09822903]
[1759997048114,2.79977787,224.86,224.82,4.44800284]
[1759997048280,2.79977787,224.86,224.82,5.09800284]
[1759997048481,0.71,224.86,224.81,4.44817788]
[1759997048676,2.79977787,224.86,224.81,5.09817788]
[1759997048900,0.71,224.85,224.81,4.44817788]
[1759997049104,0.71,224.85,224.81,5.09817788]
[1759997050107,2.08977787,224.86,224.81,8.8950013]
[1759997050306,2.08977787,224.86,224.82,0.65]
[1759997050492,2.79977787,224.87,224.82,0.65]
[1759997051211,0.71,224.86,224.82,0.65]
[1759997051391,4.446444,224.9,224.82,0.65]
[1759997051592,5.156444,224.9,224.82,2.73977787]
[1759997051807,2.08977787,224.89,224.82,2.73977787]
[1759997052014,1.33712264,224.89,224.82,1.98712264]
[1759997052186,2.04712264,224.89,224.82,1.98712264]
[1759997052508,1.33712264,224.89,224.83,4.447805]
[1759997052709,1.33712264,224.86,224.81,4.44682342]
[1759997053003,0.71,224.85,224.81,8.89496261]
[1759997053314,1.33712264,224.86,224.81,8.89496261]
[1759997053494,1.33712264,224.86,224.82,0.65]
[1759997054213,2.04712264,224.86,224.83,4.447805]
[1759997054686,4.44669282,224.89,224.82,4.44799037]
[1759997054892,2.04712264,224.85,224.82,4.44799037]
[1759997055195,4.44669282,224.89,224.82,4.44799037]
[1759997055196,2.04712264,224.84,224.82,4.44799037]
[1759997055509,2.04712264,224.84,224.79,10.87647521]
[1759997055510,2.04712264,224.83,224.79,4.44859646]
[1759997055704,0.71,224.82,224.79,4.44859646]
[1759997056307,134.8,224.88,224.81,1.33712264]
[1759997056495,134.8,224.88,224.82,1.98712264]
[1759997056807,134.8,224.88,224.83,0.65]
[1759997057138,135.51,224.88,224.83,0.65]
[1759997057694,134.8,224.88,224.84,0.65]
[1759997058715,135.51,224.88,224.82,8.89579043]
[1759997058888,2.04712264,224.87,224.82,8.89579043]
[1759997059229,2.04712264,224.87,224.82,5.09798543]
[1759997059519,0.71,224.87,224.82,5.09798543]
[1759997059691,0.71,224.87,224.82,4.44798543]
[1759997059888,0.71,224.87,224.83,0.65]
[1759997061223,0.71,224.87,224.82,4.44798543]
[1759997061522,0.71,224.87,224.82,5.09798543]
[1759997062409,0.71,224.87,224.83,0.65]
[1759997064519,0.71,224.87,224.82,4.44798543]
[1759997064707,0.71,224.87,224.82,5.09798543]
[1759997065200,0.71,224.87,224.83,5.09762936]
[1759997065793,0.71,224.87,224.83,4.44762936]
[1759997067027,0.71,224.87,224.83,0.65]
[1759997067324,136.13712264,224.88,224.83,0.65]
[1759997067522,0.71,224.87,224.83,0.65]
[1759997068020,136.13712264,224.88,224.83,4.44765718]
[1759997068225,0.71,224.86,224.83,4.44765718]
[1759997069642,136.13712264,224.88,224.82,4.44800284]
[1759997069808,136.84712264,224.88,224.82,4.44800284]
[1759997070208,134.8,224.88,224.83,0.65]
[1759997071327,134.8,224.88,224.84,0.65]
[1759997071524,135.51,224.88,224.84,0.65]
[1759997071715,0.71,224.87,224.82,29.5741972]
[1759997071913,0.71,224.87,224.82,28.9241972]
[1759997072233,0.71,224.86,224.81,31.24]
[1759997072404,0.71,224.85,224.81,31.24]
[1759997073729,1.33712264,224.82,224.8,13.35737661]
[1759997073913,0.71,224.81,224.73,0.65]
[1759997074123,1.33712264,224.78,224.73,0.65]
[1759997074323,1.33712264,224.78,224.74,0.65]
[1759997074649,1.33712264,224.76,224.72,4.4499822]
[1759997074817,1.33712264,224.76,224.72,5.0999822]
[1759997075016,2.04712264,224.76,224.72,5.0999822]
[1759997075333,1.33712264,224.76,224.72,4.4499822]
[1759997075514,2.04712264,224.76,224.72,4.4499822]
[1759997075723,0.71,224.76,224.72,4.4499822]
[1759997076105,1.33712264,224.77,224.72,4.4499822]
[1759997076311,0.71,224.75,224.72,4.4499822]
[1759997076530,1.33712264,224.77,224.72,4.4499822]
[1759997076738,0.71,224.76,224.72,4.4499822]
[1759997078316,0.71,224.76,224.71,4.45018023]
[1759997078920,0.71,224.76,224.72,0.68]
[1759997079232,0.71,224.76,224.73,4.44978418]
[1759997080233,1.33712264,224.77,224.73,4.44978418]
[1759997080430,2.04712264,224.77,224.72,4.4499822]
[1759997080736,2.04712264,224.77,224.72,5.1299822]
[1759997082961,2.04712264,224.77,224.73,0.68]
[1759997083266,166.08,224.78,224.71,15.57563081]
[1759997083430,1.33712264,224.81,224.74,0.68]
[1759997083932,32.57712264,224.82,224.74,0.68]
[1759997084248,33.26712264,224.82,224.74,0.68]
[1759997084449,33.26712264,224.82,224.74,14.04035093]
[1759997084633,33.26712264,224.82,224.75,0.7]
[1759997085142,33.26712264,224.82,224.76,4.44919024]
[1759997085447,0.69,224.84,224.77,0.7]
[1759997085750,1.33712264,224.83,224.77,0.7]
[1759997086155,31.93,224.84,224.77,0.7]
[1759997086452,31.24,224.84,224.78,1.33712264]
[1759997086631,31.24,224.84,224.79,0.7]
[1759997086830,0.69,224.86,224.8,0.7]
[1759997087037,166.73,224.87,224.81,4.4482007]
[1759997090639,166.73,224.87,224.81,5.1482007]
[1759997091367,166.73,224.87,224.81,16.26870245]
[1759997091757,166.73,224.87,224.81,29.62548435]
[1759997092343,166.73,224.87,224.82,0.7]
[1759997093154,0.69,224.86,224.82,0.7]
[1759997093551,0.69,224.86,224.83,4.447805]
[1759997096363,134.8,224.87,224.83,0.7]
[1759997096563,135.49,224.87,224.83,0.7]
[1759997096762,134.8,224.87,224.82,4.44800284]
[1759997097056,0.69,224.86,224.82,5.14800284]
[1759997097257,0.69,224.85,224.82,4.44800284]
[1759997097473,0.69,224.85,224.81,4.44819126]
[1759997097474,2.02712264,224.84,224.81,4.44819126]
[1759997097651,31.22,224.85,224.81,4.44819126]
[1759997097856,31.22,224.85,224.82,0.7]
[1759997098050,136.82712264,224.87,224.83,0.7]
[1759997098243,134.8,224.87,224.83,0.7]
[1759997098443,31.22,224.88,224.84,0.7]
[1759997098875,31.91,224.88,224.84,0.7]
[1759997099048,31.91,224.88,224.82,15.39271529]
[1759997099245,31.22,224.88,224.84,4.44760718]
[1759997099451,0.69,224.91,224.85,0.7]
[1759997099651,31.91,224.91,224.85,0.7]
[1759997099850,31.91,224.91,224.85,14.05440361]
[1759997100053,31.91,224.91,224.85,13.35440361]
[1759997100366,31.91,224.93,224.86,12.91359785]
[1759997100662,31.91,224.93,224.87,0.7]
[1759997100841,0.69,224.95,224.88,12.21359785]
[1759997101047,0.69,224.95,224.89,0.7]
[1759997101461,0.69,224.95,224.9,15.5624722]
[1759997101645,0.69,224.95,224.9,16.2624722]
[1759997101847,42.34506303,224.96,224.9,29.61390414]
[1759997102046,0.69,224.94,224.9,15.5624722]
[1759997103038,0.69,224.93,224.9,15.5624722]
[1759997104061,1.33712264,224.95,224.9,15.5624722]
[1759997104262,0.69,224.94,224.9,15.5624722]
[1759997105767,1.33712264,224.92,224.84,0.7]
[1759997106068,135.49,224.91,224.82,24.23206786]
[1759997106265,1.33712264,224.86,224.82,24.23206786]
[1759997106467,1.33712264,224.86,224.82,24.93206786]
[1759997106652,2.02712264,224.86,224.82,24.93206786]
[1759997106852,2.02712264,224.86,224.8,4.44839857]
[1759997107051,0.69,224.85,224.8,17.80518047]
[1759997107354,31.24,224.87,224.8,28.92617691]
[1759997107562,33.26712264,224.87,224.81,0.7]
[1759997108071,1.33712264,224.85,224.8,17.80518047]
[1759997108273,1.33712264,224.83,224.78,4.44865735]
[1759997108473,1.33712264,224.81,224.78,4.44865735]
[1759997108771,1.33712264,224.82,224.78,4.44865735]
[1759997108954,2.02712264,224.82,224.78,4.44865735]
[1759997109155,0.69,224.81,224.76,4.44900553]
[1759997109353,1.33712264,224.8,224.74,4.44958618]
[1759997109566,1.33712264,224.78,224.74,4.44958618]
[1759997109875,1.33712264,224.76,224.72,4.44983697]
[1759997110171,2.02712264,224.76,224.72,4.44983697]
[1759997110752,2.02712264,224.76,224.71,4.45018023]
[1759997110952,2.02712264,224.76,224.71,5.15018023]
[1759997111870,2.78177623,224.76,224.71,5.15018023]
[1759997113760,2.09177623,224.74,224.69,13.36273134]
[1759997113969,2.09177623,224.72,224.66,10.87647521]
[1759997114155,0.69,224.72,224.66,10.87647521]
[1759997114355,2.09177623,224.71,224.66,11.57647521]
[1759997114554,2.78177623,224.71,224.66,11.57647521]
[1759997114952,2.09177623,224.69,224.65,4.45135156]
[1759997115166,0.69,224.68,224.65,4.45135156]
[1759997115653,2.78177623,224.67,224.63,4.45161748]
[1759997115870,0.69,224.66,224.61,15.58242429]
[1759997116264,2.78177623,224.65,224.61,4.45216152]
[1759997116577,0.69,224.64,224.61,4.45216152]
[1759997116954,0.69,224.64,224.59,5.25241376]
[1759997117252,2.09177623,224.61,224.59,0.1]
[1759997117454,2.78177623,224.61,224.59,0.1]
[1759997117662,0.69,224.61,224.59,0.1]
[1759997117877,0.69,224.6,224.59,0.1]
[1759997119475,2.09177623,224.61,224.59,0.1]
[1759997120094,0.69,224.6,224.59,0.1]
[1759997121808,2.09177623,224.6,224.59,0.1]
[1759997122311,0.69,224.62,224.59,0.1]
[1759997122598,2.09177623,224.61,224.59,0.1]
[1759997122897,2.09177623,224.62,224.59,0.1]
[1759997123272,0.69,224.61,224.59,0.1]
[1759997123474,2.09177623,224.6,224.59,0.1]
[1759997123885,2.78177623,224.6,224.59,0.1]
[1759997124097,7.23413598,224.6,224.59,0.1]
[1759997136433,58.58413598,224.6,224.59,0.1]
[1759997137033,2.09177623,224.6,224.59,0.1]
[1759997137253,33.33177623,224.6,224.59,0.1]
[1759997137920,33.33177623,224.6,224.59,0.82]
[1759997138130,33.33177623,224.6,224.59,0.1]
[1759997139733,33.33177623,224.6,224.59,0.82]
[1759997140228,33.33177623,224.6,224.59,0.1]
[1759997140940,37.78413598,224.6,224.59,0.1]
[1759997141434,33.33177623,224.6,224.59,0.1]
[1759997141934,31.24,224.6,224.59,0.1]
[1759997142238,33.33177623,224.6,224.59,0.1]
[1759997143223,36.35235975,224.6,224.59,0.1]
[1759997143534,38.44413598,224.6,224.59,0.1]
[1759997144813,36.35235975,224.6,224.59,0.1]
[1759997145344,38.44413598,224.6,224.59,0.1]
[1759997151531,49.32061119,224.6,224.59,0.1]
[1759997151937,20.8,224.56,224.49,0.1]
[1759997152131,2.09177623,224.5,224.49,0.1]
[1759997152441,33.35177623,224.5,224.49,0.1]
[1759997153234,33.35177623,224.5,224.49,0.76]
[1759997154333,33.35177623,224.5,224.49,0.1]
[1759997154536,37.80611921,224.5,224.49,0.1]
[1759997156160,38.49611921,224.5,224.49,0.1]
[1759997156358,37.80611921,224.5,224.49,0.1]
[1759997157157,38.49611921,224.5,224.49,0.1]
[1759997157668,37.80611921,224.5,224.49,0.1]
[1759997158544,38.49611921,224.5,224.49,0.1]
[1759997159560,49.37259442,224.5,224.49,0.1]
[1759997159787,49.37259442,224.5,224.47,0.1]
[1759997159944,49.37259442,224.5,224.47,1e-08]
[1759997159945,2.09177623,224.48,224.47,1e-08]
[1759997160148,20.8,224.44,224.39,0.1]
[1759997160468,2.09177623,224.42,224.4,0.66]
[1759997160669,31.26,224.41,224.39,0.1]
[1759997160848,2.09177623,224.4,224.39,0.1]
[1759997161758,2.09177623,224.4,224.39,0.76]
[1759997163344,2.09177623,224.4,224.39,0.1]
[1759997163540,2.78177623,224.4,224.39,0.1]
[1759997164246,7.23810421,224.4,224.39,0.1]
[1759997164669,9.32988044,224.4,224.39,0.1]
[1759997165448,20.8,224.37,224.36,0.1]
[1759997165642,10.87647521,224.36,224.34,0.1]
[1759997165838,33.35177623,224.35,224.34,0.1]
[1759997166073,44.22825144,224.35,224.34,0.1]
[1759997166252,13.66825144,224.35,224.34,0.1]
[1759997166449,49.40557258,224.35,224.34,0.1]
[1759997167356,49.40557258,224.35,224.31,0.1]
[1759997167357,31.67647521,224.33,224.31,0.1]
[1759997167666,67.14002767,224.33,224.31,0.1]
[1759997167864,10.87647521,224.32,224.31,0.1]
[1759997168243,11.57647521,224.32,224.31,0.1]
[1759997168446,18.1261687,224.32,224.31,0.1]
[1759997168650,20.8,224.32,224.31,0.1]
[1759997168861,54.17177623,224.32,224.31,0.1]
[1759997169078,54.19177623,224.32,224.31,0.1]
[1759997169843,22.89177623,224.32,224.31,0.76]
[1759997170152,20.8,224.33,224.31,0.1]
[1759997170355,54.19177623,224.32,224.31,0.1]
[1759997170560,58.68969349,224.32,224.31,0.1]
[1759997170782,28.04969349,224.32,224.31,0.1]
[1759997170966,59.38969349,224.32,224.31,0.1]
[1759997171748,72.35794493,224.32,224.31,0.1]
[1759997171947,72.35794493,224.32,224.28,0.1]
[1759997171948,83.50273808,224.32,224.28,0.1]
[1759997172165,15.06002767,224.29,224.28,0.1]
[1759997172361,50.8785412,224.29,224.28,0.1]
[1759997172557,20.2185412,224.29,224.28,0.1]
[1759997172764,51.5785412,224.29,224.28,0.1]
[1759997173970,54.12032574,224.29,224.28,0.1]
[1759997174669,22.76032574,224.29,224.28,0.1]
[1759997174878,54.12032574,224.29,224.28,0.1]
[1759997177061,43.24385053,224.29,224.28,0.1]
[1759997178750,54.12032574,224.29,224.28,0.1]
[1759997179188,16.03498874,224.29,224.28,0.1]
[1759997179350,54.10032574,224.29,224.28,0.1]
[1759997179785,22.76032574,224.29,224.28,0.1]
[1759997179986,22.76032574,224.29,224.16,0.1]
[1759997179987,20.8,224.18,224.16,0.1]
[1759997180193,1.3450674,224.17,224.16,0.1]
[1759997180400,20.8,224.18,224.16,0.1]
[1759997180401,21.5,224.18,224.16,0.1]
[1759997180561,37.2459676,224.17,224.16,0.1]
[1759997181066,5.8059676,224.17,224.16,0.1]
[1759997181265,11.15134166,224.19,224.02,20.8]
[1759997181266,5.16021546,224.21,224.1,3.72228457]
[1759997181479,22.1450674,224.17,224.1,3.72228457]
[1759997181780,1.3450674,224.17,224.1,14.87801861]
[1759997181965,31.44,224.16,224.1,14.87801861]
[1759997182593,31.46,224.15,224.1,11.15573404]
[1759997183284,31.46,224.15,224.11,0.66]
[1759997183679,31.46,224.16,224.11,2.0050674]
[1759997183883,4.45910996,224.26,224.12,0.66]
[1759997184069,1.3450674,224.2,224.12,0.66]
[1759997184262,1.3450674,224.18,224.12,0.66]
[1759997184482,1.3450674,224.18,224.13,4.46169633]
[1759997184789,31.46,224.19,224.11,0.66]
[1759997184790,1.3450674,224.14,224.11,0.66]
[1759997184989,31.48,224.13,224.12,0.66]
[1759997185166,1.3450674,224.14,224.12,0.66]
[1759997185369,31.48,224.13,224.12,0.66]
[1759997185774,31.48,224.13,224.1,4.4622405]
[1759997185977,31.48,224.13,224.11,0.66]
[1759997186272,31.48,224.13,224.12,0.66]
[1759997188075,31.48,224.13,224.12,5.12189541]
[1759997188390,31.48,224.13,224.12,0.66]
[1759997188580,32.8250674,224.13,224.06,0.66]
[1759997188768,1.3450674,224.11,224.06,5.12309024]
[1759997188971,1.3450674,224.11,224.07,0.66]
[1759997189171,1.3450674,224.11,224.08,0.66]
[1759997189677,31.46,224.1,224.08,0.66]
[1759997190178,16.53218537,224.18,224.03,10.87647521]
[1759997190179,20.8,224.18,224.03,10.87647521]
[1759997190370,1.3450674,224.13,224.05,1.3450674]
[1759997190574,1.3450674,224.1,224.05,0.66]
[1759997190886,1.3450674,224.1,224.06,0.66]
[1759997191767,1.3450674,224.1,224.07,4.46289106]
[1759997192768,32.8250674,224.12,224.08,0.66]
[1759997193279,32.8250674,224.12,224.07,4.46289106]
[1759997193482,31.48,224.12,224.07,5.12289106]
[1759997193687,32.18,224.12,224.07,5.12289106]
[1759997193884,32.18,224.12,224.05,0.66]
[1759997193885,32.02198063,224.12,224.05,0.66]
[1759997194797,31.46,224.11,224.05,0.66]
[1759997195773,32.16,224.11,224.03,0.69]
[1759997195986,1.3450674,224.09,224.04,15.62221031]
[1759997196189,1.3450674,224.12,224.05,0.69]
[1759997196393,31.46,224.11,224.05,0.69]
[1759997198381,31.46,224.11,224.06,15.62081584]
[1759997198783,32.13,224.11,224.06,15.62081584]
[1759997200389,32.13,224.11,224.05,4.46328944]
[1759997200794,32.13,224.11,224.05,15.62151305]
[1759997201192,2.0150674,224.1,224.05,15.62151305]
[1759997201394,0.67,224.09,224.05,15.62151305]
[1759997201593,1.3450674,224.1,224.05,15.62151305]
[1759997202095,1.3450674,224.08,224.03,4.46368789]
[1759997202286,0.67,224.07,224.02,4.46388715]
[1759997202694,1.3450674,224.08,224.03,11.15921974]
[1759997202887,0.67,224.07,224.03,11.15921974]
[1759997203087,0.67,224.06,224.03,11.15921974]
[1759997203698,1.3450674,224.08,224.03,11.15921974]
[1759997203901,0.72,224.11,224.04,0.69]
[1759997204086,31.44,224.11,224.04,0.69]
[1759997204284,2.0650674,224.1,224.05,4.46328944]
[1759997204826,0.72,224.09,224.05,4.46328944]
[1759997205598,1.3450674,224.1,224.05,4.46328944]
[1759997205795,0.72,224.09,224.05,4.46328944]
[1759997205994,2.0650674,224.08,224.02,15.62321893]
[1759997206206,0.72,224.1,224.02,16.31321893]
[1759997206412,1.3450674,224.08,224.02,4.46388715]
[1759997206594,1.3450674,224.06,224.02,4.46388715]
[1759997206995,1.3450674,224.06,224.02,5.15388715]
[1759997207294,1.3450674,224.06,224.02,4.46388715]
[1759997208312,2.0650674,224.06,224.02,4.46388715]
[1759997208513,0.72,224.06,224.02,4.46388715]
[1759997208716,0.72,224.05,224.02,4.46388715]
[1759997208914,1.3450674,224.06,224.02,4.46388715]
[1759997209417,0.72,224.05,224.02,4.46388715]
[1759997209600,1.3450674,224.06,224.01,4.67108495]
[1759997209801,4.46229361,224.1,223.93,19.38546966]
[1759997209802,20.8,224.0,223.97,4.46229361]
[1759997210008,20.8,223.95,223.93,19.38546966]
[1759997210227,33.5850674,223.94,223.93,19.38546966]
[1759997210411,33.5850674,223.94,223.69,22.33042772]
[1759997210412,10.87647521,223.89,223.82,13.41471594]
[1759997210722,1.3450674,223.88,223.82,13.41471594]
[1759997210929,31.62,223.89,223.85,0.72]
[1759997211098,1.3450674,223.88,223.87,5.82]
[1759997211292,1.3450674,223.88,223.87,5.1]
[1759997212218,0.62,223.88,223.87,5.1]
[1759997212412,1.3450674,223.88,223.87,5.1]
[1759997212804,20.8,223.91,223.87,5.1]
[1759997213132,1.3450674,223.89,223.88,0.72]
[1759997213316,31.68,223.91,223.88,0.72]
[1759997213620,31.68,223.91,223.87,9.56686797]
[1759997213621,33.0250674,223.91,223.89,0.72]
[1759997214122,1.3450674,223.91,223.88,10.87647521]
[1759997214311,1.3450674,223.93,223.9,0.72]
[1759997214510,1.3450674,223.93,223.91,0.72]
[1759997214703,1.3450674,223.93,223.89,15.63267675]
[1759997214909,31.68,224.02,223.9,12.94154261]
[1759997215107,1.3450674,223.99,223.92,10.87647521]
[1759997215307,1.3450674,223.99,223.93,0.72]
[1759997215625,1.3450674,224.01,223.94,10.87647521]
[1759997215807,1.3450674,223.99,223.95,0.72]
[1759997216127,1.3450674,223.99,223.96,0.72]
[1759997216627,1.3450674,223.99,223.97,5.18488368]
[1759997216801,1.3450674,223.99,223.94,5.18548182]
[1759997217128,1.3450674,223.96,223.94,4.46548182]
[1759997217423,1.3450674,223.98,223.95,0.72]
[1759997217625,0.5,223.97,223.96,0.72]
[1759997217919,1.3450674,223.98,223.96,0.72]
[1759997218427,1.3450674,223.99,223.96,0.72]
[1759997218920,1.3450674,223.99,223.91,13.41111781]
[1759997218921,1.3450674,223.97,223.88,5.18650217]
[1759997219124,32.36,223.98,223.87,5.1]
[1759997219125,1.3450674,223.89,223.87,5.1]
[1759997219421,1.3450674,223.89,223.87,9.566861]
[1759997219623,20.8,223.95,223.88,0.72]
[1759997220022,1.3450674,223.93,223.88,0.72]
[1759997220209,31.76,223.96,223.89,0.72]
[1759997220412,1.3450674,223.92,223.89,0.72]
[1759997220610,1.3450674,223.9,223.87,5.1]
[1759997220813,1.3450674,223.88,223.87,5.1]
[1759997221930,1.9650674,223.88,223.87,5.1]
[1759997222724,6.43174597,223.88,223.87,5.1]